Cogmind - Beta 9.4 *** ADVENTURER MODE // 2020.01.07 @ 18:12:04 // Winter2019/RPGLIKE Player: Rev Result: Destroyed by as-62489 with Assembled Blade Performance ------------- Evolutions (0) 0 Regions Visited (4) 800 Robots Destroyed (28) 140 Value Destroyed (750) 750 Prototype IDs (7) 140 Alien Tech Used (0) 0 Bonus (300) 300 TOTAL SCORE: 2130 Bonus ------- Aligned with FarCom 300 Cogmind --------- Core Integrity 0/600 Matter 262/300 Energy 100/100 System Corruption 1% Temperature Cool (15) Movement Treading (160) Location -9/Mines Parts ------- > --- POWER (2) -------- (None) > --- PROPULSION (2) --- Light Treads > --- UTILITY (3) ------ Experimental Sensor Array Improved Signal Interpreter > --- WEAPON (2) ------- (None) > --- INVENTORY (4) ---- Large Battery (300) Transport Network Coupler Shotgun Shotgun Peak State ------------ > --- POWER ------------ Ion Engine > --- PROPULSION ------- Light Treads Light Treads > --- UTILITY ---------- Experimental Sensor Array Improved Signal Interpreter ECM Suite > --- WEAPON ----------- YOLO Cannon > --- INVENTORY -------- High-capacity Matter Pod Transport Network Coupler EMP Blaster Mini Grenade Launcher [Rating: 32] Favorites ----------- Power Ion Engine Engine Ion Engine Propulsion Light Treads Treads Light Treads Utility Improved Signal Interpreter Device ECM Suite Processor Improved Signal Interpreter Weapon Shotgun Energy Gun EM Pulse Gun Energy Cannon YOLO Cannon Ballistic Gun Shotgun Launcher EMP Blaster Special Weapon Mining Laser Build | -11 -10 -10 -10 -9 ------- Run | Scr Mat Min Exi Min Slots Evolved 5 | 3 1 . 1 . Power 1 | . . . 1 . Propulsion 1 | 1 . . . . Utility 2 | 1 1 . . . Weapon 1 | 1 . . . . Parts Attached 22 | 5 13 1 3 . Power 2 | 1 1 . . . Engine 2 | 1 1 . . . Core . | . . . . . Reactor . | . . . . . Propulsion 2 | 2 . . . . Treads 2 | 2 . . . . Leg . | . . . . . Wheel . | . . . . . Hover . | . . . . . Flight . | . . . . . Utility 8 | . 5 1 2 . Device 6 | . 3 1 2 . Storage . | . . . . . Processor 2 | . 2 . . . Hackware . | . . . . . Protection . | . . . . . Artifact . | . . . . . Weapon 10 | 2 7 . 1 . Energy Gun 2 | 1 1 . . . Energy Cannon 1 | . . . 1 . Ballistic Gun 5 | 1 4 . . . Ballistic Cannon . | . . . . . Launcher 1 | . 1 . . . Special Weapon 1 | . 1 . . . Impact Weapon . | . . . . . Slashing Weapon . | . . . . . Piercing Weapon . | . . . . . Special Melee Weapon . | . . . . . Unidentified Prototypes 3 | . . 1 2 . Parts Lost 4 | . . . . 4 Power 1 | . . . . 1 Propulsion 1 | . . . . 1 Utility 1 | . . . . 1 Weapon 1 | . . . . 1 Highest Loss Streak 4 | . . . . 4 Average Slot Usage (%) 90 | . 92 100 85 74 Engine 12 | . 12 12 11 10 Treads 24 | . 26 25 23 21 Device 18 | . 12 25 23 21 Processor 11 | . 11 12 11 11 Energy Gun 4 | . 9 . . . Energy Cannon 2 | . . . 7 10 Ballistic Gun 14 | . 14 25 9 . Naked Turns . | . . . . . Heaviest Build 25 | 8 14 13 25 25 Greatest Support 40 | 40 40 40 40 40 Greatest Overweight (x) . | . . . . . Average Overweight (x) . | . . . . . Largest Inventory Capacity 4 | 4 4 4 4 4 Average Capacity 4 | 4 4 4 4 4 Most Carried 4 | 1 4 4 4 4 Average Carried 3 | . 3 4 3 4 Final Capacity 4 | 4 4 4 4 4 Final Carried 4 | 1 4 4 4 4 Class Distribution -------------------- 74% | Skirmisher 25% | Mutant Dominant Class ---------------- Mutant | -10/Materials Skirmisher | -10/Mines Skirmisher | -10/Exiles Skirmisher | -9/Mines Resources | -11 -10 -10 -10 -9 ----------- Run | Scr Mat Min Exi Min Matter Collected 771 | 250 315 168 . 38 Remotely . | . . . . . Salvage Created 581 | . 472 93 . 16 Parts 51 | . 37 8 . 6 Haulers Intercepted 1 | . 1 . . . Recyclers Shooed . | . . . . . Parts Field Recycled . | . . . . . Retrieved Matter . | . . . . . Parts Self-Destructed . | . . . . . Prevented . | . . . . . Kills | -11 -10 -10 -10 -9 ------- Run | Scr Mat Min Exi Min Combat Hostiles Destroyed 24 | . 12 7 . 5 Guns 17 | . 10 7 . . Cannons 1 | . 1 . . . AOE 6 | . 1 . . 5 Classes Destroyed 6 | . 4 1 . 1 Hauler 1 | . 1 . . . Watcher 3 | . 3 . . . Swarmer 9 | . 3 3 . 3 Grunt 12 | . 9 3 . . Demolisher 2 | . . . . 2 Assembled 1 | . . 1 . . Best Kill Streak 3 | . 3 3 . 3 Combat Bots Only 3 | . 3 3 . 3 Max Kills in Single Turn 2 | . 2 1 . 2 Gunslinging 1 | . 1 . . . Exploded 2 | . 1 . . 2 Melee . | . . . . . Uniques/NPCs Destroyed . | . . . . . Combat | -11 -10 -10 -10 -9 -------- Run | Scr Mat Min Exi Min Damage Taken 753 | . 258 69 . 426 Core 627 | . 206 55 . 366 Absorbed by Shields . | . . . . . Redirected to Core 408 | . 165 39 . 204 Core Remaining (%) 100 | 100 . . . . Volleys Fired 62 | . 37 18 . 7 Largest 2 | . 2 2 . 1 Hottest 120 | . 120 46 . 100 Shots Fired 113 | . 71 36 . 6 Gun 105 | . 69 36 . . Cannon 6 | . . . . 6 Launcher . | . . . . . Special 2 | . 2 . . . Kinetic 73 | . 37 36 . . Thermal 8 | . 2 . . 6 Explosive . | . . . . . Electromagnetic 32 | . 32 . . . Robot Hit Streak 15 | . 12 15 . 2 Robot Miss Streak 3 | . 3 3 . 1 Penetration Max . | . . . . . Secondary Targets 1 | . 1 . . . Max Gunslinging Chain 1 | . 1 . . . Shots Hit Robots 68 | . 50 16 . 2 Core Hits 45 | . 28 11 . 6 Critical Hits 1 | . . . . 1 Critical Kills . | . . . . . Critical Parts Destroyed 1 | . . . . 1 Melee Attacks . | . . . . . Impact . | . . . . . Slashing . | . . . . . Piercing . | . . . . . Sneak Attacks . | . . . . . Combat Hostiles . | . . . . . Follow-up Attacks . | . . . . . Damage Inflicted 1918 | . 769 282 . 867 Guns 911 | . 629 282 . . Cannons 366 | . . . . 366 Explosions 617 | . 116 . . 501 Melee . | . . . . . Ramming . | . . . . . Kinetic 540 | . 258 282 . . Thermal 1007 | . 140 . . 867 Explosive . | . . . . . Electromagnetic 371 | . 371 . . . Impact . | . . . . . Slashing . | . . . . . Piercing . | . . . . . Highest Corruption 1 | . 1 1 1 1 Average Corruption 1 | . 1 1 1 1 Corruption Purged . | . . . . . Effects 7 | . . 3 3 1 Message Errors 4 | . . 2 1 1 Energy Discharges 1 | . . . 1 . Data Loss (minor) 2 | . . 1 1 . Overload Shots . | . . . . . Overflow Damage 80 | . . . . 80 Projectiles . | . . . . . Explosions 80 | . . . . 80 Melee . | . . . . . Knockbacks . | . . . . . Impact . | . . . . . Kinetic . | . . . . . Secondary . | . . . . . Self-Inflicted Damage 69 | . . . . 69 Shots 1 | . . . . 1 Rammed . | . . . . . Targets Rammed . | . . . . . Kicked . | . . . . . Crushed . | . . . . . Highest Temperature 78 | . 78 1 . 40 Average Temperature 27 | . 34 1 . 19 Received Heat Transfer 281 | . 171 30 . 80 Siege Activations . | . . . . . Robots Corrupted . | . . . . . Combat Hostiles . | . . . . . Parts Fried 1 | . 1 . . . Impact Corruptions . | . . . . . Robots Melted . | . . . . . Combat Hostiles . | . . . . . Parts Melted . | . . . . . Heat Transferred 1100 | . 300 . . 800 Parts Sabotaged . | . . . . . Parts Stolen . | . . . . . Parts Stripped . | . . . . . Power Chain Reactions 2 | . 2 . . . Missiles Intercepted . | . . . . . Alert | -11 -10 -10 -10 -9 ------- Run | Scr Mat Min Exi Min Peak Influence 244 | . 244 110 . 183 Average Influence 55 | . 53 46 . 96 Maximum Alert Level 1 | . 1 . . . Low Security (%) 97 | 100 96 100 . 100 Level 1 2 | . 3 . . . Level 2 . | . . . . . Level 3 . | . . . . . Level 4 . | . . . . . Level 5 . | . . . . . High Security . | . . . . . Max Security . | . . . . . Squads Dispatched 1 | . 1 . . . Investigation 1 | . 1 . . . Extermination . | . . . . . Reinforcement . | . . . . . Assault . | . . . . . Garrison . | . . . . . Intercept . | . . . . . Construction Impeded . | . . . . . Haulers Reinforced . | . . . . . Stealth | -11 -10 -10 -10 -9 --------- Run | Scr Mat Min Exi Min Distress Signals 3 | . 3 . . . Communications Jammed . | . . . . . Distress Signals . | . . . . . Times Spotted 42 | . 22 8 . 12 Peak Tracking Total 6 | . 4 3 . 6 Tactical Retreats 3 | . 1 1 . 1 Traps | -11 -10 -10 -10 -9 ------- Run | Scr Mat Min Exi Min Traps Triggered 4 | . 4 . . . Indirectly . | . . . . . Trap Hack Attempts . | . . . . . Triggered . | . . . . . Disarmed . | . . . . . Reprogrammed . | . . . . . Reused . | . . . . . Traps Extracted . | . . . . . Installed . | . . . . . Triggered . | . . . . . Machines | -11 -10 -10 -10 -9 ---------- Run | Scr Mat Min Exi Min Machines Disabled 7 | . . . . 7 Max in Single Turn 4 | . . . . 4 Machines Sabotaged . | . . . . . Garrisons Compromised . | . . . . . Overloaded Fab Kills . | . . . . . Fab Network Shutdowns . | . . . . . Hacking | -11 -10 -10 -10 -9 --------- Run | Scr Mat Min Exi Min Machines Accessed 6 | . 6 . . . Terminals 6 | . 6 . . . Fabricators . | . . . . . Repair Stations . | . . . . . Recycling Units . | . . . . . Scanalyzers . | . . . . . Garrison Access . | . . . . . Total Hacks 12 | . 12 . . . Successful 9 | . 9 . . . Failed 3 | . 3 . . . Catastrophic . | . . . . . Database Lockouts . | . . . . . Manual 1 | . . . 1 . Terminals 12 | . 12 . . . Fabricators . | . . . . . Repair Stations . | . . . . . Recycling Units . | . . . . . Scanalyzers . | . . . . . Garrison Access . | . . . . . Terminal Hacks 9 | . 9 . . . Record 2 | . 2 . . . Robot Analysis 2 | . 2 . . . Prototype ID Bank 2 | . 2 . . . Branch Access Points 1 | . 1 . . . Unreport Threat 1 | . 1 . . . Maintenance Status 1 | . 1 . . . Fabricator Hacks . | . . . . . Repair Station Hacks . | . . . . . Recycling Unit Hacks . | . . . . . Scanalyzer . | . . . . . Garrison Access Hacks . | . . . . . Unauthorized Hacks . | . . . . . Terminals . | . . . . . Fabricators . | . . . . . Repair Stations . | . . . . . Recycling Units . | . . . . . Scanalyzers . | . . . . . Garrison Access . | . . . . . Data Cores Recovered . | . . . . . Used . | . . . . . Hacking Detections 2 | . 2 . . . Full Trace Events . | . . . . . Feedback Events . | . . . . . Feedback Blocked . | . . . . . Robot Schematics Acquired . | . . . . . Robots Built . | . . . . . Matter . | . . . . . Time . | . . . . . Total Robot Build Rating . | . . . . . Part Schematics Acquired . | . . . . . Parts Built . | . . . . . Matter . | . . . . . Time . | . . . . . Total Part Build Rating . | . . . . . Parts Repaired . | . . . . . Time . | . . . . . Parts Recycled . | . . . . . Recycled Matter . | . . . . . Retrieved Matter . | . . . . . Retrieved Components . | . . . . . Parts Scanalyzed . | . . . . . Part Schematics Acquired . | . . . . . Parts Damaged . | . . . . . Bothacking | -11 -10 -10 -10 -9 ------------ Run | Scr Mat Min Exi Min Used RIF Installer . | . . . . . Robots Hacked . | . . . . . Non-combat . | . . . . . Combat . | . . . . . Robot Hacks Applied . | . . . . . Relay Couplers Released . | . . . . . Robots Rewired . | . . . . . Allies Hacked . | . . . . . Hacks Repelled . | . . . . . Allies | -11 -10 -10 -10 -9 -------- Run | Scr Mat Min Exi Min Total Allies . | . . . . . Largest Group . | . . . . . Highest-Rated Group . | . . . . . Highest-Rated Ally . | . . . . . Total Orders . | . . . . . Ally Attacks . | . . . . . Total Damage . | . . . . . Kills . | . . . . . Allies Corrupted . | . . . . . Allies Melted . | . . . . . Intel | -11 -10 -10 -10 -9 ------- Run | Scr Mat Min Exi Min Robot Analysis Total 2 | . 2 . . . Derelict Logs Recovered 1 | . . 1 . . Drone Launches . | . . . . . Drone Recoveries . | . . . . . Exploration | -11 -10 -10 -10 -9 ------------- Run | Scr Mat Min Exi Min Turns Passed 3071 | 62 1354 708 634 313 Spaces Moved 1558 | 39 745 240 390 144 Core 7 | 7 . . . . Treads 1551 | 32 745 240 390 144 Legs . | . . . . . Wheels . | . . . . . Hover . | . . . . . Flight . | . . . . . Fastest Speed 50 | 50 160 160 160 160 Average Speed 159 | 140 160 160 160 160 Slowest Speed 160 | 160 160 160 160 160 Overloaded Moves . | . . . . . Propulsion Burnouts . | . . . . . Robots Hopped . | . . . . . Cave-ins Triggered . | . . . . . Exploration Rate (%) 50 | 5 98 44 80 26 Regions Visited 4 Branch Regions 3 Pre-discovered Areas 1 | . . 1 . . Known Exits Taken 3 | . 1 1 1 . Unknown Exits Taken 1 | 1 . . . . Scrap Searched 1 | . . 1 . . Spaces Dug 17 | . . . . 17 Terrain Destroyed 69 | . 10 . . 59 Melee . | . . . . . Projectile 3 | . 1 . . 2 AOE 66 | . 9 . . 57 Actions | -11 -10 -10 -10 -9 --------- Run | Scr Mat Min Exi Min Total 2013 | 44 834 528 402 205 Wait 326 | . 9 264 . 53 Move 1554 | 38 744 239 389 144 Hop . | . . . . . Pick Up 12 | 1 8 . 3 . Fast Attach 18 | 5 9 1 3 . Attach 1 | . 1 . . . Detach . | . . . . . Swap 3 | . 3 . . . Drop 17 | . 9 1 7 . Fire 62 | . 37 18 . 7 Melee . | . . . . . Ram . | . . . . . Kick . | . . . . . Crush . | . . . . . Escape Stasis . | . . . . . Rewire . | . . . . . Trap . | . . . . . Miscellaneous 20 | . 14 5 . 1 Route ------- -11/Scrapyard -10/Materials (discovered 5 exits: *Mat x3 / *Min x2) -10/Mines -10/Exiles (discovered 2 exits: *Min x2) -9/Mines (discovered 1 exit: *Mat) History --------- Turn | Location | Event 1 | -11/Scrapyard | Upgraded with Propulsion slot (x1) 1 | -11/Scrapyard | Upgraded with Utility slot (x1) 1 | -11/Scrapyard | Upgraded with Weapon slot (x1) 2 | -11/Scrapyard | Met Revision 17 6 | -11/Scrapyard | Discovered new exit (range 15) 63 | -11/Scrapyard | Entered Materials 214 | -10/Materials | Discovered new exit (range 13) 308 | -10/Materials | Build established: Mutant 317 | -10/Materials | Identified exit to Materials 736 | -10/Materials | Discovered exit to Materials (range 4) 755 | -10/Materials | Reached level 2 777 | -10/Materials | Upgraded with Utility slot (x1) 939 | -10/Materials | Identified exit to Mines 980 | -10/Materials | Discovered exit to Materials (range 9) 1069 | -10/Materials | Build established: Skirmisher 1417 | -10/Materials | Entered Mines 1517 | -10/Mines | Excavation squad dispatched 1517 | -10/Mines | A large section of the Mines collapsed 1767 | -10/Mines | Excavation squad dispatched 2017 | -10/Mines | Excavation squad dispatched 2089 | -10/Mines | Found a damaged Exp. Sensor Array with a note attached 2106 | -10/Mines | Found Prototype Device 2106 | -10/Mines | Identified Exp. Sensor Array 2115 | -10/Mines | Deemed a non-threat by the Exiles lab entrance 2117 | -10/Mines | Discovered new exit (range 5) 2122 | -10/Mines | Identified exit to Exiles 2125 | -10/Mines | Entered Exiles 2148 | -10/Exiles | Discovered new exit (range 15) 2169 | -10/Exiles | Identified exit to Mines 2202 | -10/Exiles | Met 8R-AWN 2229 | -10/Exiles | Met EX-HEX 2277 | -10/Exiles | Met EX-BIN 2297 | -10/Exiles | Reached level 3 2297 | -10/Exiles | Aligned with FarCom system 2298 | -10/Exiles | Given EX-Vault access code 2335 | -10/Exiles | Opened EX-Vault 2344 | -10/Exiles | Found Prototype Device 2344 | -10/Exiles | Identified Trap Reconfigurator 2355 | -10/Exiles | Found Prototype Energy Cannon 2355 | -10/Exiles | Identified YOLO Cannon 2362 | -10/Exiles | Upgraded with Power slot (x1) 2397 | -10/Exiles | Warned to stay clear of 0b10 Research branches 2476 | -10/Exiles | Met EX-DEC 2557 | -10/Exiles | Visited The Gauntlet 2733 | -10/Exiles | Discovered exit to Mines (range 17) 2759 | -10/Exiles | Left Exiles lab with YOLO Cannon 2759 | -10/Exiles | Entered Mines 2824 | -9/Mines | Met a Derelict bent on vengeance 2858 | -9/Mines | Discovered new exit (range 11) 2880 | -9/Mines | Reached level 4 2896 | -9/Mines | Identified exit to Materials 2963 | -9/Mines | Assembled infested the area 3055 | -9/Mines | Core integrity fell below 50% 3065 | -9/Mines | Core integrity fell below 20% 3072 | -9/Mines | Destroyed by as-62489 with Assembled Blade Last Messages --------------- U-05 Engineer lays Concrete. U-05 Engineer builds a Wall. U-05 Engineer lays Concrete. U-05 Engineer destroyed. K-01 Serf collects debris. R-06 Scavenger collects Welding Torch. K-01 Serf collects debris. R-06 Scavenger collects Terrain Scanner. K-01 Serf collects debris. R-06 Scavenger collects Terrain Scan Processor. K-01 Serf collects debris. R-06 Scavenger suffers critical hit. R-06 Scavenger destroyed. K-01 Serf collects debris. K-01 Serf destroyed. YOLO Cannon suddenly explodes. ECM Suite destroyed. Ion Engine destroyed. Lgt. Treads destroyed. Core damaged (-220). Map ----- +----------------------------------------------------+ | | | | | ??????????????????????????????????? | | ??????????????????????????????????? | | ??????????????????????????????????? | | ??????????????????????????????????? | | ??????????????????????????????????? | | ??????????????????????????????????? | | ??????????????????????????????????? | | ??????????????????????????????????? | | ??????????????????????????????????? | | ??############????????????????????? | | ??# #????????????????????? | | ??# """ """ #????????????????????? | | ??# """ """ #???????############## | | ??# """ """ #???????# | | ??# #???????# ########### | | ??# """ """ #???????# #?????????? | | ??# " " #???????# #?????????? | | ??# #???????# #?????????? | | ### #??????## ####??????? | | # ; #?????## ##?????? | | # ; #?##### """ #?????? | | # ; #?# """ ##????? | | # ; a #?# ### """ #????? | | # ; @ #?# ### #????? | | ### a #?# ## k ##????? | | ??# #?# ## ####?????? | | ??# a### ### #????????? | | ??# kk " a%*aa ### #????????? | | ??# a"""|%#### #?## ##????????? | | ??# !#??? #??# ##?????????? | | ??# = #??? #??# #??????????? | | ??######%#####??? #??# #??????????? | | ????# #!# #???? #??# #??????????? | | ???## #%# ##??? #??# #??????????? | | ???# #=# #??? #??? #??????????? | | ???## ##!! #??? #??? #??????????? | | ???# # ###??? #??? ??????????? | | ???## # **%#???##??????????? | | ???# ####[#???????????????? | | ???## ## ###????????????????????? | | ????## # # ##?????????????????????? | | ?????#######???????s?ss??g?lg?gu??? | | ??????????????????????????????????? | | ??????????????????????????????????? | | ??????????????????????????????????? | | ??????????????????????????????????? | | ??????????????????????????????????? | | ??????????????????????????????????? | +----------------------------------------------------+ Best States ------------- Heat Dissipation 39 Energy Generation 20 Energy Capacity 250 Matter Stores 300 Matter Capacity 300 Sight Range 18 Robot Scan Range 36 Terrain Scan Density 110 ECM Strength 1 Resistance: KI 20 Resistance: TH 20 Resistance: EX 20 Resistance: EM 20 Resistance: I 20 Resistance: S 20 Resistance: P 20 Evasion (%) 40 Recoil Reduction 2 Offensive Hacking 10 Item Schematics ----------------- None Robot Schematics ------------------ None Fabricated ------------ Nothing Alien Tech Used ----------------- None Achievements -------------- None Challenges ------------ None RPGLIKE | -11 -10 -10 -10 -9 --------- Run | Scr Mat Min Exi Min Levels Raised 3 | . 1 . 1 1 XP Earned 8814 | 4000 1570 1150 350 1744 XP Spent 6825 | 4000 1475 . 1350 . Upgrades 17 | 7 7 . 3 . Power Slot 1 | . . . 1 . Propulsion Slot 1 | 1 . . . . Utility Slot 2 | 1 1 . . . Weapon Slot 1 | 1 . . . . Energy Generation 2 | . . . 2 . Inventory Capacity 4 | 4 . . . . Sight Range 2 | . 2 . . . Sensor Range 3 | . 3 . . . Terrain Scan Density 1 | . 1 . . . Protomatter Created 230 | . 173 55 . 2 Integrity Restored 349 | . 261 82 . 6 Core 247 | . 200 41 . 6 Parts 102 | . 61 41 . . Protomatter Decayed 122 | . 80 25 . 17 Game ------ Seed GodElectronSuperbattery Manual? 0 Play Time 00:25:22 Cumulative 50.2 hours Start 2020.01.07 @ 17:40:59 End 2020.01.07 @ 18:12:04 Sessions 1 Manual Loads 0 Difficulty Adventurer Special Mode Winter2019/RPGLIKE Game No. 29 Rogue 12 Adventurer 17 Explorer 0 Win Type - Total 1 Types 1/0/0/0/0/0/0 Lore% 43 Gallery% 39 Achievement% 42 Wizard Run 0 Options --------- ASCII 0 Keyboard 0 Movement Mouse Keybinds 0 Fullscreen 1 Font 18/SmallcapsGlow Map View 76x50 Tactical HUD 0 Map Filters NONE Filters NONE Steam 1 RUN: 7da6c844-627f-46fe-9180-2f60a06c8b0c